fUSD/lending_fUSD_20250109
["ID","MTS","AMOUNT","RATE_DAILY","PERIOD"]
[348212795,1736394641893,-500.0,9.999e-05,2]
[348212797,1736394641903,-500.0,9.999e-05,2]
[348212799,1736394641912,-500.0,9.999e-05,2]
[348212800,1736394641921,-500.0,9.999e-05,2]
[348212802,1736394641931,-500.0,9.999e-05,2]
[348212804,1736394641940,-502.58331064,9.999e-05,2]
[348212806,1736394641950,-501.90213283,9.999e-05,2]
[348212808,1736394641959,-500.0,9.999e-05,2]
[348212810,1736394641967,-503.62982284,9.999e-05,2]
[348212811,1736394641977,-501.23874663,9.999e-05,2]
[348212813,1736394641986,-541.04,9.999e-05,2]
[348212815,1736394641995,-500.0,9.999e-05,2]
[348212817,1736394642004,-500.0,9.999e-05,2]
[348212819,1736394642013,-500.0,9.999e-05,2]
[348212820,1736394642022,-505.14993876,9.999e-05,2]
[348212822,1736394642032,-500.0,9.999e-05,2]
[348212824,1736394642043,-510.95,9.999e-05,2]
[348212826,1736394642056,-500.0,9.999e-05,2]
[348212828,1736394642069,-500.0,9.999e-05,2]
[348212830,1736394642080,-501.319,9.999e-05,2]
[348212832,1736394642091,-500.0,9.999e-05,2]
[348212834,1736394642101,-500.0,9.999e-05,2]
[348212836,1736394642113,-500.0,9.999e-05,2]
[348212838,1736394642125,-500.0,9.999e-05,2]
[348212840,1736394642140,-500.0,9.999e-05,2]
[348212842,1736394642151,-500.0,9.999e-05,2]
[348212844,1736394642162,-500.0,9.999e-05,2]
[348212846,1736394642175,-500.0,9.999e-05,2]
[348212849,1736394642187,-500.0,9.999e-05,2]
[348212851,1736394642198,-502.91276104,9.999e-05,2]
[348212853,1736394642212,-500.0,9.999e-05,2]
[348212854,1736394642222,-505.32676989,9.999e-05,2]
[348212856,1736394642231,-500.0,9.999e-05,2]
[348212858,1736394642245,-500.0,9.999e-05,2]
[348212860,1736394642257,-1385.22,9.999e-05,2]
[348212862,1736394642268,-500.0,9.999e-05,2]
[348212864,1736394642280,-500.0,9.999e-05,2]
[348212866,1736394642292,-500.0,9.999e-05,2]
[348212868,1736394642304,-500.0,9.999e-05,2]
[348212871,1736394642316,-500.0,9.999e-05,2]
[348212873,1736394642328,-500.0,9.999e-05,2]
[348212875,1736394642340,-511.77826524,9.999e-05,2]
[348212877,1736394642351,-505.54270439,9.999e-05,2]
[348212879,1736394642363,-520.15880234,9.999e-05,2]
[348212881,1736394642376,-500.0,9.999e-05,2]
[348212883,1736394642387,-500.0,9.999e-05,2]
[348212885,1736394642399,-502.18074997,9.999e-05,2]
[348212887,1736394642410,-500.0,9.999e-05,2]
[348212889,1736394642422,-402.60049348,9.999e-05,2]
[348212891,1736394642432,-1013.2,9.999e-05,2]
[348212892,1736394642443,-500.0,9.999e-05,2]
[348212893,1736394642455,-500.0,9.999e-05,2]
[348212894,1736394642466,-500.0,9.999e-05,2]
[348212895,1736394642478,-500.0,9.999e-05,2]
[348212896,1736394642489,-284.18561917,9.999e-05,2]
[348212897,1736394642500,-500.0,9.999e-05,2]
[348212898,1736394642510,-502.93145544,9.999e-05,2]
[348212899,1736394642519,-465.2087797,9.999e-05,2]
[348212900,1736394642529,-504.50940732,9.999e-05,2]
[348212901,1736394642540,-509.62052004,9.999e-05,2]
[348212903,1736394642552,-2351.4,9.999e-05,2]
[348212905,1736394642565,-500.0,9.999e-05,2]
[348212907,1736394642577,-496.00848667,9.999e-05,2]
[348212909,1736394642587,-500.0,9.999e-05,2]
[348212911,1736394642597,-500.0,9.999e-05,2]
[348212913,1736394642607,-500.0,9.999e-05,2]
[348212916,1736394642617,-625.19,9.999e-05,2]
[348212918,1736394642630,-500.23328766,9.999e-05,2]
[348212920,1736394642642,-500.0,9.999e-05,2]
[348212923,1736394642654,-500.0,9.999e-05,2]
[348212925,1736394642665,-500.0,9.999e-05,2]
[348212927,1736394642675,-500.0,9.999e-05,2]
[348212929,1736394642685,-500.0,9.999e-05,2]
[348212931,1736394642695,-500.0,9.999e-05,2]
[348212933,1736394642706,-500.0,9.999e-05,2]
[348212935,1736394642716,-520.27946142,9.999e-05,2]
[348212937,1736394642727,-500.0,9.999e-05,2]
[348212940,1736394642738,-503.96772038,9.999e-05,2]
[348212942,1736394642748,-500.0,9.999e-05,2]
[348212944,1736394642759,-500.0,9.999e-05,2]
[348212946,1736394642769,-500.0,9.999e-05,2]
[348212948,1736394642780,-500.0,9.999e-05,2]
[348212950,1736394642790,-500.0,9.999e-05,2]
[348212952,1736394642801,-505.49551626,9.999e-05,2]
[348212955,1736394642811,-500.0,9.999e-05,2]
[348212957,1736394642822,-500.0,9.999e-05,2]
[348212959,1736394642832,-500.0,9.999e-05,2]
[348212961,1736394642844,-331.79585934,9.999e-05,2]
[348212963,1736394642855,-500.0,9.999e-05,2]
[348212965,1736394642866,-500.0,9.999e-05,2]
[348212967,1736394642877,-500.0,9.999e-05,2]
[348212970,1736394642889,-503.99151265,9.999e-05,2]
[348212972,1736394642899,-503.37426091,9.999e-05,2]
[348212974,1736394642913,-560.65081062,9.999e-05,2]
[348212976,1736394642924,-500.0,9.999e-05,2]
[348212978,1736394642934,-500.0,9.999e-05,2]
[348212981,1736394642945,-500.0,9.999e-05,2]
[348212984,1736394642955,-500.0,9.999e-05,2]
[348212987,1736394642966,-500.0,9.999e-05,2]
[348212990,1736394642977,-507.6299088,9.999e-05,2]
[348212993,1736394642988,-500.92900842,9.999e-05,2]
[348212996,1736394642998,-500.0,9.999e-05,2]
[348212998,1736394643009,-500.0,9.999e-05,2]
[348213000,1736394643020,-975.44,9.999e-05,2]
[348213002,1736394643030,-500.0,9.999e-05,2]
[348213004,1736394643042,-500.0,9.999e-05,2]
[348213006,1736394643053,-500.75982875,9.999e-05,2]
[348213008,1736394643063,-500.0,9.999e-05,2]
[348213011,1736394643075,-500.0,9.999e-05,2]
[348213013,1736394643086,-500.0,9.999e-05,2]
[348213015,1736394643097,-1584.89,9.999e-05,2]
[348213017,1736394643108,-500.0,9.999e-05,2]
[348213019,1736394643118,-500.0,9.999e-05,2]
[348213021,1736394643130,-504.84551596,9.999e-05,2]
[348213024,1736394643142,-500.0,9.999e-05,2]
[348213026,1736394643152,-500.0,9.999e-05,2]
[348213028,1736394643163,-500.0,9.999e-05,2]
[348213030,1736394643173,-500.0,9.999e-05,2]
[348213032,1736394643184,-500.0,9.999e-05,2]
[348213034,1736394643195,-601.65,9.999e-05,2]
[348213037,1736394643206,-500.0,9.999e-05,2]
[348213039,1736394643216,-698.71,9.999e-05,2]
[348213041,1736394643226,-500.0,9.999e-05,2]
[348213043,1736394643237,-844.48,9.999e-05,2]
[348213045,1736394643248,-162.51093197,9.999e-05,2]
[348213047,1736394643259,-500.0,9.999e-05,2]
[348213050,1736394643270,-504.33252481,9.999e-05,2]
[348213052,1736394643280,-8368670.59874704,0.0001,2]
[348213054,1736394643291,-3012.7048965,0.0001,2]
[348213056,1736394643302,-2088024.3508127,0.0001,2]
[348213076,1736394643482,-341.44003182,9.998e-05,2]
[348213078,1736394643495,-179.81984863,9.998e-05,2]
[348213081,1736394643505,-284.71015137,0.0001,2]
[348213083,1736394643518,-434.522266,0.0001,2]
[348213085,1736394643531,-462.65140344,0.0001,2]
[348213090,1736394643563,-447.6119647,9.998e-05,2]
[348213092,1736394643574,-123.71948092,0.0001,2]
[348213094,1736394643588,-500.0,0.0001,2]
[348213098,1736394643614,-1000.0,0.0001,2]
[348213100,1736394643627,-1074.02663487,0.0001,2]
[348213211,1736394644745,-281.165514,9.799e-05,2]
[348213213,1736394644754,-500.0,9.998e-05,2]
[348213215,1736394644765,-500.0,9.998e-05,2]
[348213216,1736394644774,-500.0,9.998e-05,2]
[348213218,1736394644784,-10278.25582467,0.0001,2]
[348213221,1736394644795,-500.0,0.0001,2]
[348213240,1736394644969,-262.47,9.799e-05,2]
[348213242,1736394644981,-18.695514,9.799e-05,2]
[348213244,1736394644991,-505.11228605,9.876e-05,2]
[348213364,1736394646106,-512.93771395,9.876e-05,2]
[348213366,1736394646115,-294.11775605,9.998e-05,2]
[348213369,1736394646128,-635.75224395,9.998e-05,2]
[348213370,1736394646140,-500.0,9.998e-05,2]
[348213373,1736394646149,-500.0,9.998e-05,2]
[348213375,1736394646159,-1537.69775655,0.0001,2]
[348213377,1736394646171,-1457.571224,0.0001,2]
[348213381,1736394646200,-104434.93750118,0.0001,2]
[348213383,1736394646210,-286622.35,0.0001,2]
[348213385,1736394646219,-5037.62340851,0.0001,2]
[348213387,1736394646229,-375.0,0.0001,2]
[348213389,1736394646238,-15823.92,0.0001,2]
[348213391,1736394646248,-2156.2,0.0001,6]
[348213393,1736394646258,-162.56505197,0.0001,2]
[348213395,1736394646267,-291.07981331,0.0001,2]
[348213397,1736394646276,-215.09248392,0.0001,2]
[348213399,1736394646285,-316.65152416,0.0001,2]
[348213401,1736394646294,-316.65152408,0.0001,2]
[348213403,1736394646303,-316.65152408,0.0001,2]
[348213405,1736394646312,-316.65152408,0.0001,2]
[348213407,1736394646321,-316.65152408,0.0001,2]
[348213409,1736394646331,-316.65152408,0.0001,2]
[348213411,1736394646339,-316.65152408,0.0001,2]
[348213413,1736394646349,-316.65152408,0.0001,2]
[348213415,1736394646358,-316.65152408,0.0001,2]
[348213417,1736394646367,-316.65152408,0.0001,2]
[348213419,1736394646376,-3000.0,0.0001,2]
[348213421,1736394646384,-316.65152408,0.0001,2]
[348213423,1736394646393,-316.65152408,0.0001,2]
[348213425,1736394646402,-316.65152408,0.0001,2]
[348213427,1736394646411,-200.0,0.0001,4]
[348213429,1736394646420,-316.65152408,0.0001,2]
[348213431,1736394646430,-200.0,0.0001,5]
[348213433,1736394646440,-316.65152408,0.0001,2]
[348213435,1736394646450,-316.65152408,0.0001,2]
[348213437,1736394646459,-200.0,0.0001,6]
[348213439,1736394646468,-316.65152408,0.0001,2]
[348213441,1736394646477,-316.65152408,0.0001,2]
[348213443,1736394646486,-843.94874778,0.0001,2]
[348213444,1736394646495,-316.65152408,0.0001,2]
[348213446,1736394646504,-316.65152408,0.0001,2]
[348213448,1736394646513,-169.71440323,0.0001,2]
[348213451,1736394646524,-2000.0,0.0001,2]
[348213453,1736394646533,-200.0,0.0001,2]
[348213454,1736394646542,-540.78881156,0.0001,2]
[348213455,1736394646550,-540.78881139,0.00010003,2]
[348213456,1736394646559,-150.884025,0.00010073,2]
[348213457,1736394646568,-281.165514,0.00010073,2]
[348213458,1736394646577,-658.73132646,0.000101,2]
[348213459,1736394646586,-200.0,0.000101,2]
[348213460,1736394646595,-540.78881139,0.00010107,2]
[348213461,1736394646604,-150.0,0.00010107,2]
[348213462,1736394646613,-5126.0649156,0.00010135,4]
[348213464,1736394646622,-8543.44285932,0.00010135,4]
[348213466,1736394646631,-19852.93721113,0.00010135,4]
[348213468,1736394646640,-510.95,0.00010136,2]
[348213470,1736394646649,-153.54,0.00010137,2]
[348213472,1736394646659,-153.05,0.00010137,2]
[348213474,1736394646668,-150.0,0.00010137,2]
[348213476,1736394646677,-1500.0,0.00010141,2]
[348213478,1736394646686,-150.0,0.00010151,2]
[348213480,1736394646695,-150.884025,0.00010156,2]
[348213482,1736394646704,-155.242055,0.00010156,2]
[348213484,1736394646713,-281.165514,0.00010156,2]
[348213486,1736394646722,-281.165514,0.00010156,2]
[348213488,1736394646732,-500.0,0.00010171,2]
[348213490,1736394646742,-500.0,0.00010171,2]
[348213492,1736394646751,-988.2,0.00010171,2]
[348213494,1736394646760,-859.25,0.00010171,2]
[348213496,1736394646769,-791.13,0.00010171,2]
[348213498,1736394646778,-2256.45,0.00010171,2]
[348213500,1736394646788,-500.0,0.00010171,2]
[348213502,1736394646797,-500.0,0.00010171,2]
[348213504,1736394646806,-500.0,0.00010171,2]
[348213506,1736394646816,-500.0,0.00010171,2]
[348213508,1736394646826,-1262.17,0.00010171,2]
[348213510,1736394646835,-500.0,0.00010171,2]
[348213512,1736394646845,-583.62,0.00010171,2]
[348213514,1736394646854,-500.0,0.00010171,2]
[348213516,1736394646863,-500.0,0.00010171,2]
[348213518,1736394646873,-1000.0,0.00010171,2]
[348213520,1736394646884,-500.0,0.00010171,2]
[348213523,1736394646895,-500.0,0.00010171,2]
[348213524,1736394646904,-1091.0,0.00010171,2]
[348213527,1736394646913,-1009.35,0.00010171,2]
[348213528,1736394646922,-540.78881139,0.0001021,2]
[348213530,1736394646931,-1500.0,0.0001023,2]
[348213532,1736394646941,-1500.0,0.00010232,2]
[348213534,1736394646950,-150.884025,0.00010268,2]
[348213537,1736394646959,-500.0,0.00010272,2]
[348213539,1736394646969,-500.0,0.00010272,2]
[348213541,1736394646978,-500.0,0.00010272,2]
[348213542,1736394646987,-500.0,0.00010272,2]
[348213544,1736394646996,-500.0,0.00010272,2]
[348213546,1736394647006,-500.0,0.00010272,2]
[348213548,1736394647017,-500.0,0.00010272,2]
[348213551,1736394647027,-500.0,0.00010272,2]
[348213552,1736394647036,-500.0,0.00010272,2]
[348213554,1736394647046,-500.0,0.00010272,2]
[348213557,1736394647055,-500.0,0.00010272,2]
[348213558,1736394647065,-519.08736537,0.00010272,2]
[348213560,1736394647074,-500.0,0.00010272,2]
[348213562,1736394647083,-500.0,0.00010272,2]
[348213564,1736394647092,-500.0,0.00010272,2]
[348213566,1736394647101,-500.0,0.00010272,2]
[348213568,1736394647110,-500.0,0.00010272,2]
[348213570,1736394647120,-500.0,0.00010272,2]
[348213573,1736394647132,-500.0,0.00010272,2]
[348213575,1736394647141,-500.0,0.00010272,2]
[348213576,1736394647150,-500.0,0.00010272,2]
[348213578,1736394647159,-500.0,0.00010272,2]
[348213580,1736394647168,-500.0,0.00010272,2]
[348213583,1736394647177,-500.0,0.00010272,2]
[348213585,1736394647187,-500.0,0.00010272,2]
[348213586,1736394647196,-500.0,0.00010272,2]
[348213588,1736394647205,-500.0,0.00010272,2]
[348213590,1736394647214,-500.0,0.00010272,2]
[348213592,1736394647224,-500.0,0.00010272,2]
[348213595,1736394647233,-500.0,0.00010272,2]
[348213597,1736394647243,-500.0,0.00010272,2]
[348213598,1736394647252,-500.0,0.00010272,2]
[348213601,1736394647262,-500.0,0.00010272,2]
[348213602,1736394647271,-500.0,0.00010272,2]
[348213604,1736394647280,-500.0,0.00010272,2]
[348213607,1736394647291,-500.0,0.00010272,2]
[348213609,1736394647301,-500.0,0.00010272,2]
[348213611,1736394647311,-500.0,0.00010272,2]
[348213613,1736394647321,-500.0,0.00010272,2]
[348213615,1736394647331,-500.0,0.00010272,2]
[348213617,1736394647340,-509.54566552,0.00010272,2]
[348213619,1736394647349,-500.0,0.00010272,2]
[348213621,1736394647358,-500.0,0.00010272,2]
[348213623,1736394647367,-613.17,0.00010272,2]
[348213625,1736394647377,-500.0,0.00010272,2]
[348213627,1736394647386,-500.0,0.00010272,2]
[348213629,1736394647395,-510.5276522,0.00010272,2]
[348213631,1736394647404,-500.0,0.00010272,2]
[348213633,1736394647414,-500.0,0.00010272,2]
[348213635,1736394647423,-500.0,0.00010272,2]
[348213637,1736394647432,-3038.23,0.00010272,2]
[348213639,1736394647441,-500.0,0.00010272,2]
[348213641,1736394647450,-500.0,0.00010272,2]
[348213643,1736394647459,-500.0,0.00010272,2]
[348213645,1736394647469,-500.0,0.00010272,2]
[348213647,1736394647478,-500.0,0.00010272,2]
[348213649,1736394647488,-500.0,0.00010272,2]
[348213651,1736394647497,-500.0,0.00010272,2]
[348213653,1736394647506,-500.0,0.00010272,2]
[348213654,1736394647515,-500.0,0.00010272,2]
[348213656,1736394647524,-500.0,0.00010272,2]
[348213658,1736394647534,-500.0,0.00010272,2]
[348213660,1736394647543,-1989.89,0.00010272,2]
[348213662,1736394647552,-500.0,0.00010272,2]
[348213665,1736394647562,-550.33510723,0.00010272,2]
[348213666,1736394647573,-500.0,0.00010272,2]
[348213668,1736394647583,-500.0,0.00010272,2]
[348213670,1736394647592,-500.0,0.00010272,2]
[348213673,1736394647602,-500.0,0.00010272,2]
[348213675,1736394647611,-508.17240353,0.00010272,2]
[348213677,1736394647621,-1635.27,0.00010272,2]
[348213678,1736394647630,-1455.17,0.00010272,2]
[348213681,1736394647640,-500.0,0.00010272,2]
[348213682,1736394647649,-500.0,0.00010272,2]
[348213685,1736394647658,-1078.9,0.00010272,2]
[348213686,1736394647667,-506.51429599,0.00010272,2]
[348213688,1736394647676,-433.0439191,0.00010272,2]
[348213691,1736394647686,-500.0,0.00010272,2]
[348213692,1736394647695,-1598.26,0.00010272,2]
[348213694,1736394647704,-500.0,0.00010272,2]
[348213696,1736394647713,-500.0,0.00010272,2]
[348213698,1736394647722,-500.0,0.00010272,2]
[348213700,1736394647732,-500.0,0.00010272,2]
[348213702,1736394647741,-500.0,0.00010272,2]
[348213704,1736394647751,-530.14989772,0.00010272,2]
[348213706,1736394647760,-1829.03,0.00010272,2]
[348213708,1736394647769,-500.0,0.00010272,2]
[348213710,1736394647779,-500.0,0.00010272,2]
[348213712,1736394647788,-500.0,0.00010272,2]
[348213714,1736394647797,-1338.94,0.00010272,2]
[348213716,1736394647807,-500.0,0.00010272,2]
[348213719,1736394647816,-500.0,0.00010272,2]
[348213721,1736394647827,-500.0,0.00010272,2]
[348213722,1736394647837,-500.0,0.00010272,2]
[348213724,1736394647846,-500.0,0.00010272,2]
[348213727,1736394647855,-500.0,0.00010272,2]
[348213729,1736394647865,-500.0,0.00010272,2]
[348213731,1736394647874,-500.0,0.00010272,2]
[348213732,1736394647884,-527.85001845,0.00010272,2]
[348213734,1736394647894,-500.0,0.00010272,2]
[348213737,1736394647904,-500.0,0.00010272,2]
[348213738,1736394647913,-500.0,0.00010272,2]
[348213741,1736394647923,-500.0,0.00010272,2]
[348213743,1736394647932,-500.0,0.00010272,2]
[348213745,1736394647942,-1190.14,0.00010272,2]
[348213747,1736394647951,-585.15195302,0.00010272,2]
[348213749,1736394647960,-889.93,0.00010272,2]
[348213751,1736394647970,-508.16794803,0.00010272,2]
[348213753,1736394647980,-500.0,0.00010272,2]
[348213755,1736394647989,-500.0,0.00010272,2]
[348213757,1736394647999,-500.0,0.00010272,2]
[348213759,1736394648009,-500.0,0.00010272,2]
[348213761,1736394648018,-1168.16,0.00010272,2]
[348213763,1736394648028,-500.0,0.00010272,2]
[348213765,1736394648038,-622.84,0.00010272,2]
[348213767,1736394648047,-660.94,0.00010272,2]
[348213769,1736394648057,-500.0,0.00010272,2]
[348213771,1736394648066,-500.0,0.00010272,2]
[348213773,1736394648077,-500.0,0.00010272,2]
[348213775,1736394648087,-631.3479929,0.00010272,2]
[348213777,1736394648096,-401.34314762,0.00010272,2]
[348213779,1736394648106,-500.0,0.00010272,2]
[348213781,1736394648116,-500.0,0.00010272,2]
[348213783,1736394648125,-547.55,0.00010272,2]
[348213785,1736394648139,-500.0,0.00010272,2]
[348213787,1736394648149,-500.0,0.00010272,2]
[348213789,1736394648159,-500.0,0.00010272,2]
[348213791,1736394648169,-500.0,0.00010272,2]
[348213793,1736394648179,-624.56,0.00010272,2]
[348213795,1736394648188,-1444.08,0.00010272,2]
[348213797,1736394648198,-500.0,0.00010272,2]
[348213799,1736394648211,-500.0,0.00010272,2]
[348213801,1736394648222,-586.50282782,0.00010272,2]
[348213803,1736394648231,-178.80076514,0.00010272,2]
[348213806,1736394648241,-500.0,0.00010272,2]
[348213808,1736394648251,-185.45404616,0.00010272,2]
[348213810,1736394648261,-505.34104025,0.00010272,2]
[348213812,1736394648271,-500.0,0.00010272,2]
[348213814,1736394648281,-500.0,0.00010272,2]
[348213816,1736394648290,-500.0,0.00010272,2]
[348213818,1736394648301,-503.58228007,0.00010272,2]
[348213820,1736394648311,-500.0,0.00010272,2]
[348213822,1736394648321,-500.0,0.00010272,2]
[348213824,1736394648330,-508.05,0.00010272,2]
[348213825,1736394648339,-500.0,0.00010272,2]
[348213826,1736394648348,-500.0,0.00010272,2]
[348213839,1736394648518,-946.04,0.00010272,2]
[348213842,1736394648541,-500.0,0.00010272,2]
[348213844,1736394648551,-623.89,0.00010272,2]
[348213846,1736394648560,-500.0,0.00010272,2]
[348213848,1736394648571,-500.0,0.00010272,2]
[348213850,1736394648580,-500.0,0.00010272,2]
[348213852,1736394648590,-500.0,0.00010272,2]
[348213854,1736394648600,-500.0,0.00010272,2]
[348213856,1736394648611,-634.58836287,0.00010272,2]
[348213858,1736394648620,-982.73,0.00010272,2]
[348213860,1736394648632,-500.0,0.00010272,2]
[348213862,1736394648642,-500.0,0.00010272,2]
[348213864,1736394648652,-500.0,0.00010272,2]
[348213866,1736394648662,-512.03966287,0.00010272,2]
[348213868,1736394648671,-500.0,0.00010272,2]
[348213870,1736394648680,-820.93,0.00010272,2]
[348213872,1736394648690,-646.72,0.00010272,2]
[348213874,1736394648699,-500.0,0.00010272,2]
[348213876,1736394648709,-500.0,0.00010272,2]
[348213878,1736394648718,-500.0,0.00010272,2]
[348213880,1736394648728,-929.87,0.00010272,2]
[348213882,1736394648738,-520.46461561,0.00010272,2]
[348213884,1736394648747,-517.3129276,0.00010273,2]
[348213886,1736394648757,-513.86533919,0.00010273,2]
[348213888,1736394648766,-500.0,0.00010273,2]
[348213890,1736394648776,-500.0,0.00010273,2]
[348213892,1736394648785,-500.0,0.00010273,2]
[348213894,1736394648795,-500.0,0.00010273,2]
[348213896,1736394648804,-500.0,0.00010273,2]
[348213898,1736394648814,-288.34,0.00010273,2]
[348213901,1736394648824,-500.0,0.00010273,2]
[348213903,1736394648833,-317.57966019,0.00010273,2]
[348213905,1736394648843,-500.0,0.00010273,2]
[348213906,1736394648852,-500.0,0.00010273,2]
[348213908,1736394648861,-500.0,0.00010273,2]
[348213910,1736394648870,-249.21687736,0.00010273,2]
[348213912,1736394648880,-500.0,0.00010273,2]
[348213914,1736394648890,-986.39,0.00010273,2]
[348213916,1736394648900,-500.0,0.00010273,2]
[348213918,1736394648910,-500.0,0.00010273,2]
[348213920,1736394648919,-871.89,0.00010273,2]
[348213922,1736394648929,-500.0,0.00010273,2]
[348213924,1736394648939,-500.0,0.00010273,2]
[348213926,1736394648948,-500.0,0.00010273,2]
[348213928,1736394648957,-515.98,0.00010273,2]
[348213930,1736394648967,-500.0,0.00010273,2]
[348213932,1736394648977,-500.0,0.00010273,2]
[348213934,1736394648986,-500.0,0.00010273,2]
[348213936,1736394648995,-500.0,0.00010273,2]
[348213938,1736394649005,-500.0,0.00010273,2]
[348213940,1736394649014,-767.61,0.00010273,2]
[348213942,1736394649024,-500.0,0.00010273,2]
[348213944,1736394649033,-500.0,0.00010273,2]
[348213946,1736394649043,-500.0,0.00010273,2]
[348213948,1736394649052,-527.29,0.00010273,2]
[348213950,1736394649061,-500.0,0.00010273,2]
[348213952,1736394649071,-345.30354752,0.00010273,2]
[348213954,1736394649080,-500.0,0.00010273,2]
[348213956,1736394649090,-500.0,0.00010273,2]
[348213958,1736394649100,-500.0,0.00010273,2]
[348213960,1736394649109,-500.0,0.00010273,2]
[348213962,1736394649119,-505.63754767,0.00010273,2]
[348213964,1736394649131,-500.0,0.00010273,2]
[348213966,1736394649142,-500.0,0.00010273,2]
[348213968,1736394649152,-500.0,0.00010273,2]
[348213970,1736394649161,-506.81203715,0.00010273,2]
[348213972,1736394649171,-500.0,0.00010273,2]
[348213974,1736394649180,-500.0,0.00010273,2]
[348213976,1736394649190,-541.04,0.00010273,2]
[348213978,1736394649200,-500.0,0.00010273,2]
[348213980,1736394649210,-500.0,0.00010273,2]
[348213982,1736394649219,-507.83225529,0.00010273,2]
[348213984,1736394649229,-510.95,0.00010273,2]
[348213986,1736394649238,-515.58016275,0.00010273,2]
[348213988,1736394649247,-500.0,0.00010273,2]
[348213990,1736394649257,-500.0,0.00010273,2]
[348213992,1736394649266,-500.0,0.00010273,2]
[348213994,1736394649275,-500.0,0.00010273,2]
[348213996,1736394649284,-500.0,0.00010273,2]
[348213998,1736394649294,-500.0,0.00010273,2]
[348214000,1736394649303,-500.0,0.00010273,2]
[348214002,1736394649313,-500.0,0.00010273,2]
[348214004,1736394649322,-500.0,0.00010273,2]
[348214006,1736394649331,-500.0,0.00010273,2]
[348214008,1736394649341,-1385.22,0.00010273,2]
[348214010,1736394649350,-500.0,0.00010273,2]
[348214012,1736394649359,-500.0,0.00010273,2]
[348214014,1736394649368,-500.0,0.00010273,2]
[348214016,1736394649377,-500.0,0.00010273,2]
[348214018,1736394649386,-500.0,0.00010273,2]
[348214020,1736394649396,-500.0,0.00010273,2]
[348214022,1736394649405,-500.0,0.00010273,2]
[348214024,1736394649416,-500.0,0.00010273,2]
[348214026,1736394649426,-1013.2,0.00010273,2]
[348214028,1736394649436,-500.0,0.00010273,2]
[348214030,1736394649446,-500.0,0.00010273,2]
[348214032,1736394649456,-500.0,0.00010273,2]
[348214034,1736394649465,-523.68883317,0.00010273,2]
[348214036,1736394649475,-500.0,0.00010273,2]
[348214038,1736394649485,-2351.4,0.00010273,2]
[348214040,1736394649494,-500.0,0.00010273,2]
[348214042,1736394649504,-500.0,0.00010273,2]
[348214044,1736394649513,-500.0,0.00010273,2]
[348214046,1736394649522,-500.0,0.00010273,2]
[348214048,1736394649532,-625.19,0.00010273,2]
[348214050,1736394649541,-560.48737679,0.00010273,2]
[348214052,1736394649551,-500.0,0.00010273,2]
[348214054,1736394649560,-500.0,0.00010273,2]
[348214056,1736394649570,-500.0,0.00010273,2]
[348214058,1736394649579,-500.0,0.00010273,2]
[348214060,1736394649589,-500.0,0.00010273,2]
[348214062,1736394649599,-500.0,0.00010273,2]
[348214064,1736394649608,-500.0,0.00010273,2]
[348214066,1736394649617,-500.0,0.00010273,2]
[348214068,1736394649627,-500.0,0.00010273,2]
[348214070,1736394649636,-510.68848345,0.00010273,2]